fUST/lending_fUST_20260610
["ID","MTS","AMOUNT","RATE_DAILY","PERIOD"]
[424697345,1781058639000,-500.0,0.00019178,2]
[424697354,1781058639000,-1936.8,0.00019178,2]
[424697335,1781058639000,-960.28,0.00019178,2]
[424697351,1781058639000,-500.0,0.00019178,2]
[424697358,1781058639000,-2660.17,0.00019178,2]
[424697361,1781058639000,-500.0,0.00019178,2]
[424697363,1781058639000,-500.0,0.00019178,2]
[424697359,1781058639000,-1541.26,0.00019178,2]
[424697365,1781058639000,-500.0,0.00019178,2]
[424697367,1781058639000,-2880.45,0.00019178,2]
[424697379,1781058639000,-2942.28,0.00019178,2]
[424697377,1781058639000,-500.0,0.00019178,2]
[424697374,1781058639000,-500.0,0.00019178,2]
[424697368,1781058639000,-500.0,0.00019178,2]
[424697372,1781058639000,-2217.19,0.00019178,2]
[424697375,1781058639000,-500.0,0.00019178,2]
[424697265,1781058639000,-500.0,0.00019178,2]
[424697349,1781058639000,-794.4,0.00019178,2]
[424697336,1781058639000,-500.0,0.00019178,2]
[424697370,1781058639000,-500.0,0.00019178,2]
[424697333,1781058639000,-500.0,0.00019178,2]
[424697281,1781058639000,-500.0,0.00019178,2]
[424697282,1781058639000,-500.0,0.00019178,2]
[424697270,1781058639000,-500.0,0.00019178,2]
[424697274,1781058639000,-500.0,0.00019178,2]
[424697322,1781058639000,-1974.73,0.00019178,2]
[424697286,1781058639000,-500.0,0.00019178,2]
[424697272,1781058639000,-500.0,0.00019178,2]
[424697284,1781058639000,-500.0,0.00019178,2]
[424697293,1781058639000,-500.0,0.00019178,2]
[424697288,1781058639000,-500.0,0.00019178,2]
[424697277,1781058639000,-500.0,0.00019178,2]
[424697279,1781058639000,-607.95,0.00019178,2]
[424697275,1781058639000,-500.0,0.00019178,2]
[424697290,1781058639000,-500.0,0.00019178,2]
[424697292,1781058639000,-500.0,0.00019178,2]
[424697301,1781058639000,-500.0,0.00019178,2]
[424697308,1781058639000,-500.0,0.00019178,2]
[424697297,1781058639000,-374.3985119,0.00019178,2]
[424697312,1781058639000,-500.0,0.00019178,2]
[424697310,1781058639000,-3128.56,0.00019178,2]
[424697295,1781058639000,-500.0,0.00019178,2]
[424697314,1781058639000,-882.56,0.00019178,2]
[424697299,1781058639000,-1334.75,0.00019178,2]
[424697306,1781058639000,-671.16,0.00019178,2]
[424697303,1781058639000,-500.0,0.00019178,2]
[424697305,1781058639000,-1050.38,0.00019178,2]
[424697316,1781058639000,-589.09,0.00019178,2]
[424697318,1781058639000,-500.0,0.00019178,2]
[424697320,1781058639000,-1526.9,0.00019178,2]
[424697331,1781058639000,-500.0,0.00019178,2]
[424697380,1781058640000,-707.4,0.00019178,2]
[424697384,1781058640000,-813.24,0.00019178,2]
[424697382,1781058640000,-628.78,0.00019178,2]
[424697396,1781058640000,-500.0,0.00019178,2]
[424697392,1781058640000,-2.95418657,0.00019178,2]
[424697398,1781058640000,-373.58060593,0.00019178,2]
[424697395,1781058640000,-568.12581343,0.00019178,2]
[424697385,1781058640000,-541.88,0.00019178,2]
[424698048,1781059832000,-547.35603744,0.00016207,2]
[424698046,1781059832000,-175.11396256,0.00014877,3]
[424698331,1781059839000,-1053.0,0.0001863,2]
[424698333,1781059839000,-1053.0,0.0001863,2]
[424698343,1781059839000,-1053.0,0.0001863,2]
[424698349,1781059839000,-1053.0,0.0001863,2]
[424698351,1781059839000,-1053.0,0.0001863,2]
[424698345,1781059839000,-1053.0,0.0001863,2]
[424698353,1781059839000,-1053.0,0.0001863,2]
[424698347,1781059839000,-1053.0,0.0001863,2]
[424698355,1781059839000,-1053.0,0.0001863,2]
[424698360,1781059839000,-1053.0,0.0001863,2]
[424698357,1781059839000,-1053.0,0.0001863,2]
[424698364,1781059839000,-1056.60676398,0.0001863,2]
[424698369,1781059839000,-473.74319366,0.00018779,2]
[424698371,1781059839000,-500.0,0.00018779,2]
[424698367,1781059839000,-2295.72962968,0.0001863,2]
[424698378,1781059839000,-565.59813091,0.00018779,2]
[424698386,1781059839000,-300.0,0.00018779,2]
[424698374,1781059839000,-500.0,0.00018779,2]
[424698338,1781059839000,-1053.0,0.0001863,2]
[424698358,1781059839000,-1053.0,0.0001863,2]
[424698334,1781059839000,-1053.0,0.0001863,2]
[424698312,1781059839000,-500.0,0.0001863,2]
[424698342,1781059839000,-1053.0,0.0001863,2]
[424698373,1781059839000,-500.0,0.00018779,2]
[424698283,1781059839000,-325.80027339,0.00016207,2]
[424698309,1781059839000,-300.0,0.00018629,2]
[424698314,1781059839000,-500.0,0.0001863,2]
[424698301,1781059839000,-194.388,0.00016536,2]
[424698299,1781059839000,-4126.84368917,0.00016207,2]
[424698311,1781059839000,-156.63428067,0.0001863,2]
[424698316,1781059839000,-500.0,0.0001863,2]
[424698318,1781059839000,-332.62542654,0.0001863,2]
[424698303,1781059839000,-150.6725878,0.00016536,2]
[424698307,1781059839000,-500.0,0.00018596,2]
[424698305,1781059839000,-500.0,0.0001768,2]
[424698322,1781059839000,-1053.0,0.0001863,2]
[424698320,1781059839000,-1053.0,0.0001863,2]
[424698329,1781059839000,-1053.0,0.0001863,2]
[424698325,1781059839000,-1053.0,0.0001863,2]
[424698327,1781059839000,-1053.0,0.0001863,2]
[424698324,1781059839000,-1053.0,0.0001863,2]
[424698340,1781059839000,-1053.0,0.0001863,2]
[424698336,1781059839000,-1053.0,0.0001863,2]
[424698380,1781059839000,-500.0,0.00018779,2]
[424698391,1781059839000,-500.0,0.00018904,2]
[424698384,1781059839000,-500.0,0.00018779,2]
[424698427,1781059839000,-160.0,0.00019054,2]
[424698425,1781059839000,-417.15472785,0.00019054,2]
[424698429,1781059839000,-2142.13703312,0.00019066,2]
[424698431,1781059839000,-925.94240354,0.000191,2]
[424698440,1781059839000,-500.0,0.00019178,2]
[424698445,1781059839000,-500.0,0.00019178,2]
[424698438,1781059839000,-500.0,0.00019178,2]
[424698441,1781059839000,-500.0,0.00019178,2]
[424698443,1781059839000,-500.0,0.00019178,2]
[424698436,1781059839000,-500.0,0.00019178,2]
[424698447,1781059839000,-504.24779895,0.00019178,2]
[424698456,1781059839000,-547.29,0.00019178,2]
[424698449,1781059839000,-500.0,0.00019178,2]
[424698458,1781059839000,-500.0,0.00019178,2]
[424698451,1781059839000,-500.0,0.00019178,2]
[424698454,1781059839000,-500.0,0.00019178,2]
[424698453,1781059839000,-500.0,0.00019178,2]
[424698462,1781059839000,-500.0,0.00019178,2]
[424698376,1781059839000,-500.0,0.00018779,2]
[424698434,1781059839000,-854.8403,0.00019178,2]
[424698432,1781059839000,-976.46,0.000191,3]
[424698460,1781059839000,-500.0,0.00019178,2]
[424698413,1781059839000,-514.78733325,0.00018904,2]
[424698387,1781059839000,-230.60901612,0.00018804,2]
[424698423,1781059839000,-230.60901609,0.0001901,2]
[424698382,1781059839000,-500.0,0.00018779,2]
[424698393,1781059839000,-500.0,0.00018904,2]
[424698402,1781059839000,-500.0,0.00018904,2]
[424698398,1781059839000,-151.5,0.00018904,2]
[424698397,1781059839000,-612.91347708,0.00018904,2]
[424698395,1781059839000,-500.0,0.00018904,2]
[424698389,1781059839000,-500.0,0.00018904,2]
[424698408,1781059839000,-500.0,0.00018904,2]
[424698404,1781059839000,-219.77131946,0.00018904,2]
[424698406,1781059839000,-615.49610346,0.00018904,2]
[424698409,1781059839000,-500.0,0.00018904,2]
[424698411,1781059839000,-500.0,0.00018904,2]
[424698415,1781059839000,-16679.84630198,0.00018934,2]
[424698418,1781059839000,-624.33556245,0.00018934,2]
[424698420,1781059839000,-35.14184335,0.00018934,2]
[424698416,1781059839000,-1731.20721542,0.00018934,2]
[424698400,1781059839000,-151.5,0.00018904,2]
[424698421,1781059839000,-500.0,0.0001894,2]
[424698555,1781059840000,-2760.43,0.00019178,2]
[424698537,1781059840000,-761.3,0.00019178,2]
[424698541,1781059840000,-500.0,0.00019178,2]
[424698539,1781059840000,-500.0,0.00019178,2]
[424698528,1781059840000,-920.27,0.00019178,2]
[424698533,1781059840000,-500.0,0.00019178,2]
[424698531,1781059840000,-500.0,0.00019178,2]
[424698530,1781059840000,-500.0,0.00019178,2]
[424698526,1781059840000,-1892.45,0.00019178,2]
[424698517,1781059840000,-564.55,0.00019178,2]
[424698546,1781059840000,-517.84249141,0.00019178,2]
[424698535,1781059840000,-1188.34,0.00019178,2]
[424698544,1781059840000,-500.0,0.00019178,2]
[424698573,1781059840000,-779.36,0.00019178,2]
[424698553,1781059840000,-1477.04,0.00019178,2]
[424698551,1781059840000,-782.47,0.00019178,2]
[424698548,1781059840000,-1856.1,0.00019178,2]
[424698550,1781059840000,-2549.33,0.00019178,2]
[424698557,1781059840000,-500.0,0.00019178,2]
[424698560,1781059840000,-2124.81,0.00019178,2]
[424698559,1781059840000,-500.0,0.00019178,2]
[424698522,1781059840000,-1463.28,0.00019178,2]
[424698578,1781059840000,-500.0,0.00019178,2]
[424698564,1781059840000,-500.0,0.00019178,2]
[424698577,1781059840000,-500.0,0.00019178,2]
[424698571,1781059840000,-519.3,0.00019178,2]
[424698569,1781059840000,-677.93,0.00019178,2]
[424698574,1781059840000,-500.0,0.00019178,2]
[424698543,1781059840000,-1079.14,0.00019178,2]
[424698512,1781059840000,-1006.61,0.00019178,2]
[424698493,1781059840000,-500.0,0.00019178,2]
[424698515,1781059840000,-244.80188366,0.00019178,2]
[424698566,1781059840000,-500.0,0.00019178,2]
[424698467,1781059840000,-810.95,0.00019178,2]
[424698469,1781059840000,-366.75139316,0.00019178,2]
[424698464,1781059840000,-500.0,0.00019178,2]
[424698465,1781059840000,-500.0,0.00019178,2]
[424698471,1781059840000,-500.0,0.00019178,2]
[424698473,1781059840000,-221.36,0.00019178,2]
[424698476,1781059840000,-500.0,0.00019178,2]
[424698475,1781059840000,-500.0,0.00019178,2]
[424698478,1781059840000,-376.98013799,0.00019178,2]
[424698481,1781059840000,-500.0,0.00019178,2]
[424698480,1781059840000,-500.0,0.00019178,2]
[424698495,1781059840000,-500.0,0.00019178,2]
[424698485,1781059840000,-500.0,0.00019178,2]
[424698502,1781059840000,-1279.13,0.00019178,2]
[424698497,1781059840000,-500.0,0.00019178,2]
[424698483,1781059840000,-500.0,0.00019178,2]
[424698498,1781059840000,-500.0,0.00019178,2]
[424698500,1781059840000,-500.0,0.00019178,2]
[424698504,1781059840000,-500.0,0.00019178,2]
[424698487,1781059840000,-500.0,0.00019178,2]
[424698491,1781059840000,-500.0,0.00019178,2]
[424698489,1781059840000,-582.62,0.00019178,2]
[424698506,1781059840000,-500.0,0.00019178,2]
[424698508,1781059840000,-500.0,0.00019178,2]
[424698519,1781059840000,-845.79,0.00019178,2]
[424698520,1781059840000,-500.0,0.00019178,2]
[424698524,1781059840000,-12432.92,0.00019178,2]
[424698513,1781059840000,-2998.2,0.00019178,2]
[424698510,1781059840000,-643.19,0.00019178,2]
[424698567,1781059840000,-602.58,0.00019178,2]
[424698630,1781059840000,-12432.92,0.00019452,2]
[424698576,1781059840000,-1862.95,0.00019178,2]
[424698611,1781059840000,-500.0,0.00019452,2]
[424698612,1781059840000,-500.0,0.00019452,2]
[424698615,1781059840000,-500.0,0.00019452,2]
[424698616,1781059840000,-500.0,0.00019452,2]
[424698624,1781059840000,-1006.61,0.00019452,2]
[424698625,1781059840000,-2998.2,0.00019452,2]
[424698623,1781059840000,-643.19,0.00019452,2]
[424698614,1781059840000,-500.0,0.00019452,2]
[424698626,1781059840000,-564.55,0.00019452,2]
[424698617,1781059840000,-500.0,0.00019452,2]
[424698618,1781059840000,-500.0,0.00019452,2]
[424698619,1781059840000,-1279.13,0.00019452,2]
[424698621,1781059840000,-500.0,0.00019452,2]
[424698608,1781059840000,-500.0,0.00019452,2]
[424698620,1781059840000,-500.0,0.00019452,2]
[424698627,1781059840000,-845.79,0.00019452,2]
[424698628,1781059840000,-500.0,0.00019452,2]
[424698629,1781059840000,-1463.28,0.00019452,2]
[424698632,1781059840000,-920.27,0.00019452,2]
[424698633,1781059840000,-500.0,0.00019452,2]
[424698635,1781059840000,-500.0,0.00019452,2]
[424698631,1781059840000,-1892.45,0.00019452,2]
[424698637,1781059840000,-761.3,0.00019452,2]
[424698638,1781059840000,-500.0,0.00019452,2]
[424698562,1781059840000,-2819.69,0.00019178,2]
[424698634,1781059840000,-500.0,0.00019452,2]
[424698639,1781059840000,-500.0,0.00019452,2]
[424698640,1781059840000,-1079.14,0.00019452,2]
[424698622,1781059840000,-500.0,0.00019452,2]
[424698602,1781059840000,-500.0,0.00019452,2]
[424698636,1781059840000,-1188.34,0.00019452,2]
[424698606,1781059840000,-500.0,0.00019452,2]
[424698613,1781059840000,-582.62,0.00019452,2]
[424698579,1781059840000,-500.0,0.00019178,2]
[424698580,1781059840000,-925.94240354,0.000192,2]
[424698582,1781059840000,-522.66723148,0.00019214,2]
[424698581,1781059840000,-465.95759023,0.0001921,2]
[424698583,1781059840000,-230.60901609,0.00019215,2]
[424698584,1781059840000,-600.0,0.00019277,2]
[424698587,1781059840000,-230.60901609,0.00019421,2]
[424698589,1781059840000,-500.0,0.00019452,2]
[424698588,1781059840000,-615.92965157,0.00019452,2]
[424698590,1781059840000,-504.7351603,0.00019452,2]
[424698591,1781059840000,-505.13585404,0.00019452,2]
[424698586,1781059840000,-378.1773257,0.00019405,2]
[424698593,1781059840000,-500.0,0.00019452,2]
[424698585,1781059840000,-925.94240354,0.000194,2]
[424698594,1781059840000,-500.0,0.00019452,2]
[424698610,1781059840000,-500.0,0.00019452,2]
[424698604,1781059840000,-810.95,0.00019452,2]
[424698609,1781059840000,-500.0,0.00019452,2]
[424698592,1781059840000,-500.0,0.00019452,2]
[424698607,1781059840000,-500.0,0.00019452,2]
[424698601,1781059840000,-500.0,0.00019452,2]
[424698603,1781059840000,-500.0,0.00019452,2]
[424698605,1781059840000,-500.0,0.00019452,2]
[424698595,1781059840000,-500.0,0.00019452,2]
[424698599,1781059840000,-500.0,0.00019452,2]
[424698600,1781059840000,-500.0,0.00019452,2]
[424698597,1781059840000,-500.0,0.00019452,2]
[424698596,1781059840000,-500.0,0.00019452,2]
[424698598,1781059840000,-547.29,0.00019452,2]
[424698644,1781059841000,-782.47,0.00019452,2]
[424698652,1781059841000,-500.0,0.00019452,2]
[424698651,1781059841000,-500.0,0.00019452,2]
[424698641,1781059841000,-500.0,0.00019452,2]
[424698643,1781059841000,-2549.33,0.00019452,2]
[424698642,1781059841000,-1856.1,0.00019452,2]
[424698646,1781059841000,-2760.43,0.00019452,2]
[424698650,1781059841000,-2819.69,0.00019452,2]
[424698649,1781059841000,-2124.81,0.00019452,2]
[424698648,1781059841000,-500.0,0.00019452,2]
[424698647,1781059841000,-500.0,0.00019452,2]
[424698654,1781059841000,-677.93,0.00019452,2]
[424698657,1781059841000,-500.0,0.00019452,2]
[424698653,1781059841000,-602.58,0.00019452,2]
[424698658,1781059841000,-1659.90277501,0.00019452,2]
[424698656,1781059841000,-779.36,0.00019452,2]
[424698655,1781059841000,-519.3,0.00019452,2]
[424698645,1781059841000,-1477.04,0.00019452,2]
[424698714,1781061031000,-2843.0271427,0.00016223,2]
[424698708,1781061031000,-5000.0,0.00014195,2]
[424698710,1781061031000,-218.32762026,0.00014777,2]
[424698712,1781061031000,-210.73380479,0.00015945,2]
[424698716,1781061031000,-1000.0,0.00016665,2]
[424698718,1781061031000,-3616.3835835,0.00016921,2]
[424698719,1781061031000,-369.72343337,0.00016959,2]
[424698721,1781061031000,-590.81005438,0.00018603,2]
[424698722,1781061031000,-202.17632206,0.00018603,2]
[424698723,1781061031000,-15178.43152514,0.00018604,2]
[424698720,1781061031000,-2030.855737,0.0001756,2]
[424698725,1781061032000,-6092.96306607,0.00018604,2]
[424698724,1781061032000,-3278.81548854,0.00018604,2]
[424698841,1781061038000,-2721.24019379,0.00014053,2]
[424699118,1781061040000,-308.3999989,0.00014053,2]
[424699127,1781061040000,-359.99275684,0.00014053,2]
[424699123,1781061040000,-325.99178291,0.00014053,2]
[424699121,1781061040000,-462.097503,0.00014053,2]
[424699238,1781061043000,-20592.43316865,0.00018604,2]
[424699239,1781061043000,-1650.86080021,0.00018604,2]
[424699237,1781061043000,-1294.49615756,0.00018604,2]
[424699236,1781061043000,-339.78590514,0.00014053,2]
[424699235,1781061043000,-482.49185942,0.00014053,2]
[424699248,1781061046000,-2352.75678737,0.00018604,2]
[424699247,1781061046000,-3845.42937111,0.00018604,2]
[424699246,1781061046000,-4466.36280811,0.00018604,2]
[424699255,1781061415000,165.0,0.0002411,30]
[424699256,1781061429000,170.26,0.0002411,30]
[424699264,1781061839000,179.0,0.00024109,30]
[424699268,1781061955000,-877.56984733,0.00014922,7]
[424699266,1781061955000,-771.43510691,0.00013912,2]
[424699265,1781061955000,-4135.49971547,0.00013773,2]
[424699267,1781061955000,-877.56984733,0.00014629,7]
[424699269,1781061963000,-277.71806257,0.000153,2]
[424699270,1781061963000,-877.56984733,0.0001536,7]
[424699274,1781061964000,-236.03567147,0.00016384,7]
[424699271,1781061964000,-877.56984733,0.00015799,7]
[424699272,1781061964000,-672.4297715,0.00015839,2]
[424699273,1781061964000,-396.60228276,0.00016111,2]
[424699277,1781061973000,-602.11300631,0.00016959,2]
[424699276,1781061973000,-319.85984591,0.00016959,2]
[424699275,1781061973000,-641.5341759,0.00016384,7]
[424699278,1781061973000,-436.49297188,0.00016959,2]
[424699279,1781062086000,-176.0,0.00016959,2]
[424699289,1781062112000,-931.18486917,0.00018185,2]
[424699288,1781062112000,-224.02013837,0.00018184,2]
[424699287,1781062112000,-500.69312639,0.00018184,2]
[424699286,1781062112000,-500.0,0.00018184,2]
[424699283,1781062112000,-500.0,0.00018184,2]
[424699285,1781062112000,-496.97216789,0.00018184,2]
[424699284,1781062112000,-361.10500311,0.00018184,2]
[424699282,1781062112000,-776.60171573,0.00016959,2]
[424699281,1781062112000,-437.27574084,0.00016959,2]
[424699280,1781062112000,-272.1472385,0.00016958,2]
[424699290,1781062117000,-5000.0,0.00018185,2]
[424699319,1781062232000,-2722.85239551,0.00017823,2]
[424699321,1781062232000,-2798.49126389,0.00018003,2]
[424699320,1781062232000,-2277.14760449,0.00017823,2]
[424699387,1781062238000,-704.220022,0.00018185,2]
[424699384,1781062238000,-594.87568226,0.00018185,2]
[424699382,1781062238000,-675.2372561,0.00018185,2]
[424699380,1781062238000,-4336.07471563,0.00018185,2]
[424699378,1781062238000,-300.0,0.00018184,2]
[424699376,1781062238000,-300.0,0.00018184,2]
[424699374,1781062238000,-1838.04821006,0.00018003,2]
[424699355,1781062238000,-363.46052605,0.00018003,2]
[424699652,1781062241000,-0.12947603,0.00018185,2]
[424699684,1781062243000,-500.0,0.00018404,2]
[424699683,1781062243000,-30911.78077482,0.00018404,2]
[424699682,1781062243000,-516.9587976,0.00018403,2]
[424699681,1781062243000,-1360.70357114,0.0001831,2]
[424699680,1781062243000,-424.45375611,0.00018185,2]
[424699685,1781062243000,-287.41003066,0.00018404,2]
[424699698,1781062246000,-9475.18057025,0.00018404,2]
[424699697,1781062246000,-17561.0186629,0.00018404,2]
[424699696,1781062246000,-5061.27252519,0.00018404,2]
[424699734,1781063432000,-794.14888639,0.00016114,2]
[424699850,1781063438000,-2746.51518737,0.00019,2]
[424699802,1781063438000,-500.0,0.00016566,2]
[424699814,1781063438000,-150.88,0.00016907,2]
[424699804,1781063438000,-159.04377052,0.00016566,2]
[424699801,1781063438000,-279.55703093,0.00016566,2]
[424699812,1781063438000,-3966.7148113,0.00016815,2]
[424699799,1781063438000,-152.0,0.000164,7]
[424699797,1781063438000,-152.0,0.000164,7]
[424699808,1781063438000,-417.15472785,0.00016567,7]
[424699810,1781063438000,-3110.85706946,0.00016567,7]
[424699790,1781063438000,-332.49320657,0.00016384,7]
[424699788,1781063438000,-300.0,0.00016383,2]
[424699786,1781063438000,-3296.73485351,0.00016114,2]
[424699795,1781063438000,-777.71426736,0.00016384,7]
[424699793,1781063438000,-2992.43885917,0.00016384,7]
[424699792,1781063438000,-1329.9728263,0.00016384,7]
[424699815,1781063438000,-151.55,0.00016944,2]
[424699852,1781063438000,-18755.29408849,0.00019,2]
[424699807,1781063438000,-5319.89130519,0.00016567,7]
[424699819,1781063438000,-227.57,0.00017852,2]
[424699848,1781063438000,-29267.88640613,0.00019,2]
[424699846,1781063438000,-253.48,0.0001899,3]
[424699831,1781063438000,-3947.3844704,0.00017973,2]
[424699844,1781063438000,-322.72501,0.00018969,2]
[424699821,1781063438000,-289.01125213,0.00017853,7]
[424699842,1781063438000,-1156.04500853,0.0001852,7]
[424699838,1781063438000,-760.47,0.00018479,3]
[424699827,1781063438000,-452.3389479,0.00017933,2]
[424699834,1781063438000,-322.72501,0.00018203,2]
[424699823,1781063438000,-153.597,0.00017896,2]
[424699840,1781063438000,-151.0,0.00018489,2]
[424699836,1781063438000,-2188.26162979,0.00018384,7]
[424699825,1781063438000,-51576.10068875,0.00017933,2]
[424699829,1781063438000,-218.57177174,0.00017972,2]
[424699832,1781063438000,-13489.1335187,0.00017973,2]
[424699817,1781063438000,-547.06540745,0.00017717,7]
[424700075,1781063441000,-265.08239713,0.00019,2]
[424700077,1781063441000,-15908.39457494,0.00019,2]
[424700084,1781063441000,-5674.51311328,0.00019,2]
[424700264,1781063443000,-17.02000926,0.00019178,3]
[424700235,1781063443000,-7026.29999999,0.00019,2]
[424700237,1781063443000,-151.0,0.00019,2]
[424700247,1781063443000,-40.23915696,0.00019178,2]
[424700236,1781063443000,-522.0364606,0.00019,2]
[424700238,1781063443000,-417.15472785,0.0001907,2]
[424700239,1781063443000,-160.0,0.0001907,2]
[424700244,1781063443000,-577.23735399,0.00019178,2]
[424700243,1781063443000,-500.0,0.00019178,2]
[424700240,1781063443000,-107.20549174,0.0001908,2]
[424700245,1781063443000,-13.77761193,0.00019178,2]
[424700246,1781063443000,-500.0,0.00019178,2]
[424700241,1781063443000,-1892.12240582,0.0001908,2]
[424700260,1781063443000,-500.0,0.00019178,2]
[424700242,1781063443000,-370.37696141,0.000191,2]
[424700249,1781063443000,-500.0,0.00019178,2]
[424700263,1781063443000,-500.0,0.00019178,2]
[424700261,1781063443000,-743.37,0.00019178,2]
[424700259,1781063443000,-500.0,0.00019178,2]
[424700258,1781063443000,-500.0,0.00019178,2]
[424700257,1781063443000,-500.0,0.00019178,2]
[424700256,1781063443000,-500.0,0.00019178,2]
[424700255,1781063443000,-341.82927451,0.00019178,2]
[424700262,1781063443000,-500.0,0.00019178,2]
[424700251,1781063443000,-500.0,0.00019178,2]
[424700252,1781063443000,-149.5615082,0.00019178,2]
[424700254,1781063443000,-158.17072549,0.00019178,2]
[424700248,1781063443000,-460.4384918,0.00019178,2]
[424700250,1781063443000,-500.0,0.00019178,2]
[424700253,1781063443000,-350.4384918,0.00019178,2]
[424700271,1781063446000,-200.0,0.00019178,3]
[424700283,1781063446000,-500.0,0.00019178,2]
[424700282,1781063446000,-389.22500899,0.00019178,2]
[424700272,1781063446000,-500.0,0.00019178,2]
[424700270,1781063446000,-200.0,0.00019178,3]
[424700269,1781063446000,-200.0,0.00019178,3]
[424700266,1781063446000,-182.97999074,0.00019178,3]
[424700267,1781063446000,-200.0,0.00019178,3]
[424700273,1781063446000,-490.16,0.00019178,2]
[424700268,1781063446000,-200.0,0.00019178,3]
[424700278,1781063446000,-534.07,0.00019178,2]
[424700281,1781063446000,-500.0,0.00019178,2]
[424700275,1781063446000,-500.0,0.00019178,2]
[424700274,1781063446000,-500.0,0.00019178,2]
[424700280,1781063446000,-500.0,0.00019178,2]
[424700277,1781063446000,-500.0,0.00019178,2]
[424700285,1781063446000,-11396.84,0.00019178,2]
[424700279,1781063446000,-500.0,0.00019178,2]
[424700287,1781063446000,-1734.75,0.00019178,2]
[424700286,1781063446000,-843.58,0.00019178,2]
[424700284,1781063446000,-922.73,0.00019178,2]
[424700289,1781063446000,-821.28585147,0.00019178,2]
[424700288,1781063446000,-775.31,0.00019178,2]
[424700276,1781063446000,-500.0,0.00019178,2]
[424704897,1781064129000,-152.0,0.00016389,7]
[424704898,1781064146000,-152.0,0.00016384,2]
[424704899,1781064163000,-152.0,0.00016384,2]
[424704908,1781064632000,-532.80669207,0.00016058,2]
[424704909,1781064632000,-527.80976733,0.00016058,2]
[424704911,1781064632000,-1742.55011859,0.00016058,2]
[424704910,1781064632000,-270.02866358,0.00016058,2]
[424704976,1781064638000,-756.81431939,0.00016058,2]
[424705142,1781064641000,-209.19311076,0.00017308,2]
[424705139,1781064641000,-33.92689455,0.00017308,2]
[424705140,1781064641000,-117.47626202,0.00017308,2]
[424705138,1781064641000,-167.99932276,0.00016264,2]
[424705137,1781064641000,-1017.99043904,0.00016058,2]
[424705375,1781064643000,-2422.45050504,0.00017308,2]
[424705376,1781064643000,-1054.598973,0.00017308,2]
[424705378,1781064643000,-1831.89528867,0.00017308,2]
[424705371,1781064643000,-396.4195155,0.00017308,2]
[424705373,1781064643000,-1362.62840909,0.00017308,2]
[424705682,1781064646000,-2481.97097377,0.00017308,2]
[424705702,1781064646000,-2642.26478934,0.00017308,2]
[424705680,1781064646000,-898.58465246,0.00017308,2]
[424705712,1781064646000,-365.48187057,0.00017308,2]
[424705709,1781064646000,-326.27787323,0.00017308,2]
[424705710,1781064646000,-150.2402562,0.00017308,2]
[424706479,1781064812000,279.0,0.0002,120]
[424706483,1781065329000,3193.54736393,7.6e-05,2]
[424706484,1781065339000,766.92115511,8.6e-05,2]
[424706545,1781065832000,-166.0,0.00014097,2]
[424706547,1781065832000,-10.46460124,0.00014098,2]
[424706546,1781065832000,-235.47915421,0.00014098,2]
[424706573,1781065839000,-1341.69770452,0.00014098,2]
[424706575,1781065839000,-813.784396,0.00014098,2]
[424706571,1781065839000,-1340.41394978,0.00013956,2]
[424706732,1781065841000,-1106.38514969,0.00014098,2]
[424706741,1781065846000,-3752.25039848,0.00014098,2]